bitfinex/quotes_SOLUSD_20220212
["timestamp","ask_amount","ask_price","bid_price","bid_amount"]
[1644693988626,2.84650822,98.028,97.956,126.2312]
[1644693989025,2.84650822,98.03,97.956,126.2312]
[1644693989325,0.02764863,98.031,97.956,126.2312]
[1644693989326,2.84650822,98.031,97.96,15.311]
[1644693989527,0.02764863,98.032,97.96,15.311]
[1644693989732,0.02764863,98.034,97.961,2.62390296]
[1644693989927,0.02764863,98.033,97.961,2.62390296]
[1644693990128,0.02764863,98.042,97.961,2.62390296]
[1644693990326,4.28503823,98.07,97.961,2.62390296]
[1644693990327,0.02764863,98.047,97.962,24.5779]
[1644693990526,35.30263862,98.077,97.962,24.5779]
[1644693990527,0.02764863,98.041,97.962,24.5779]
[1644693990727,0.02764863,98.04,97.963,2.62390296]
[1644693991128,0.02764863,98.063,97.963,104.22390296]
[1644693991328,0.02764863,98.04,97.964,5.101]
[1644693991526,35.30263862,98.077,97.965,101.6]
[1644693991527,0.02764863,98.062,97.965,101.6]
[1644693991731,2.84650822,98.071,97.981,143.52439296]
[1644693991929,0.02764863,98.061,97.982,24.6424]
[1644693992230,0.02764863,98.07,97.983,101.6]
[1644693992427,5.099,98.099,97.984,5.099]
[1644693992428,0.02764863,98.061,97.984,5.099]
[1644693992628,2.87415685,98.069,97.984,7.72290296]
[1644693992828,2.84650822,98.071,97.985,2.62390296]
[1644693993034,0.02764863,98.068,97.986,5.099]
[1644693993227,0.02764863,98.07,98.0,12.27]
[1644693993430,0.02764863,98.067,98.001,35.87468532]
[1644693993627,2.87415685,98.075,98.02,15.2986]
[1644693993828,2.84650822,98.076,98.022,43.80477488]
[1644693994030,2.84650822,98.075,98.022,43.80477488]
[1644693994246,2.84650822,98.074,98.022,48.90377488]
[1644693994448,2.84650822,98.074,98.023,101.6]
[1644693994853,4.28503823,98.101,98.03,15.2987]
[1644693995053,4.28503823,98.101,98.041,101.6]
[1644693995249,0.02787282,98.117,98.041,101.6]
[1644693995448,0.02787282,98.139,98.042,30.94500296]
[1644693995649,0.02787282,98.151,98.043,101.6]
[1644693995848,0.02787282,98.138,98.044,40.96417709]
[1644693996050,0.02787282,98.15,98.05,15.2924]
[1644693996250,0.02787282,98.137,98.06,12.27]
[1644693996451,0.02787282,98.149,98.045,2.62390296]
[1644693996649,47.00462031,98.135,98.059,41.39471492]
[1644693996950,47.00462031,98.135,98.043,101.6]
[1644693997150,29.93357282,98.134,98.044,5.097]
[1644693997351,0.02787282,98.133,98.043,101.6]
[1644693997549,5.12487282,98.133,98.045,101.6]
[1644693997749,29.68067282,98.133,98.045,101.6]
[1644693997950,29.68067282,98.133,98.046,46.57837369]
[1644693998148,24.58367282,98.133,98.047,101.6]
[1644693998349,5.097,98.132,98.047,101.6]
[1644693998548,0.02787282,98.131,98.047,101.6]
[1644693998749,0.02787282,98.132,98.051,101.6]
[1644693998950,0.02787282,98.13,98.051,101.6]
[1644693999151,5.097,98.129,98.024,28.777]
[1644693999351,7.74877578,98.129,98.024,106.697]
[1644693999552,0.02787282,98.128,98.024,106.697]
[1644693999752,7.74977578,98.128,98.024,5.097]
[1644693999956,15.3006,98.12,98.024,5.097]
[1644694000154,14.71,98.11,98.004,48.59296775]
[1644694000551,5.12687282,98.109,98.005,101.85]
[1644694000751,7.75077578,98.109,98.005,101.85]
[1644694000953,2.62390296,98.108,98.005,101.85]
[1644694001152,5.12687282,98.107,98.005,101.85]
[1644694001553,25.96540296,98.106,98.005,101.85]
[1644694001852,44.90112626,98.099,98.005,101.85]
[1644694002055,5.12687282,98.098,98.005,0.25]
[1644694003056,2.62390296,98.097,98.005,0.25]
[1644694003358,15.305,98.09,97.991,101.6]
[1644694003556,5.12687282,98.089,97.991,101.6]
[1644694003756,2.62390296,98.089,97.991,101.6]
[1644694003956,7.75077578,98.088,97.992,37.60888298]
[1644694004157,15.3068,98.08,97.992,37.60888298]
[1644694004356,36.52621733,98.078,97.992,37.60888298]
[1644694004559,5.099,98.077,97.993,0.25]
[1644694004756,5.12687282,98.077,97.993,101.85]
[1644694005157,5.07737282,98.077,97.993,101.85]
[1644694005557,5.07737282,98.077,97.981,5.099]
[1644694005758,15.3082,98.07,97.981,5.099]
[1644694005959,5.12687282,98.069,97.981,5.099]
[1644694006156,0.02787282,98.068,97.981,5.099]
[1644694006358,5.099,98.067,97.944,5.099]
[1644694006568,5.099,98.067,97.945,41.94439548]
[1644694006759,15.3121,98.05,97.95,15.3112]
[1644694006970,1.42152686,98.025,97.951,51.1542]
[1644694007159,44.7426162,98.038,97.952,101.6]
[1644694007160,1.42152686,98.033,97.952,101.6]
[1644694007359,1.42152686,98.033,97.952,109.57590296]
[1644694007562,0.02787282,98.032,97.952,109.57590296]
[1644694007761,0.02787282,98.032,97.953,2.62390296]
[1644694007963,1.44939968,98.032,97.953,2.62390296]
[1644694008162,1.42152686,98.031,97.953,2.62390296]
[1644694008563,1.42152686,98.027,97.953,2.62390296]
[1644694008761,1.42152686,98.029,97.97,15.3087]
[1644694008962,1.42152686,98.029,97.972,35.9428267]
[1644694009163,1.42152686,98.028,97.972,35.9428267]
[1644694009570,44.7426162,98.038,97.972,35.9428267]
[1644694009571,1.42152686,98.027,97.972,35.9428267]
[1644694009765,1.42152686,98.028,97.973,101.6]
[1644694009964,1.42152686,98.027,97.973,101.6]
[1644694010169,1.42152686,98.025,97.973,101.6]
[1644694010365,1.42152686,98.026,97.974,5.101]
[1644694010567,1.42152686,98.027,97.974,5.101]
[1644694010765,1.42152686,98.03,97.975,101.6]
[1644694010964,1.42152686,98.03,97.976,37.06178476]
[1644694011163,1.42152686,98.03,97.977,101.6]
[1644694011363,1.42152686,98.03,97.977,106.701]
[1644694011566,1.42152686,98.031,97.977,106.701]
[1644694011766,1.42152686,98.031,97.977,101.6]
[1644694011965,1.42152686,98.03,97.977,101.6]
[1644694012165,1.42152686,98.029,97.977,106.701]
[1644694012367,1.42152686,98.026,97.971,5.101]
[1644694012567,1.42152686,98.022,97.97,15.3087]
[1644694012967,5.102,98.037,97.95,15.3113]
[1644694012968,1.42152686,98.02,97.95,15.3113]
[1644694013168,1.42152686,98.014,97.95,15.3113]
[1644694013467,1.42152686,98.013,97.95,15.3113]
[1644694013869,0.92152686,98.012,97.95,15.3113]
[1644694014069,5.102,98.018,97.952,101.85]
[1644694014268,5.102,98.018,97.941,5.102]
[1644694015468,5.102,98.018,97.937,35.06730766]
[1644694015768,0.02787282,98.017,97.937,35.06730766]
[1644694015970,5.103,98.016,97.938,101.6]
[1644694016167,5.103,98.016,97.938,101.85]
[1644694016367,0.02787282,98.017,97.938,101.85]
[1644694016568,5.103,98.016,97.938,101.85]
[1644694016775,5.13087282,98.017,97.938,101.85]
[1644694016969,5.13087282,98.018,97.938,101.85]
[1644694017170,5.103,98.018,97.938,101.85]
[1644694017370,5.13087282,98.018,97.938,101.85]
[1644694019174,0.02787282,98.018,97.938,101.85]
[1644694019379,43.02237162,98.019,97.938,101.85]
[1644694019576,5.13087282,98.018,97.938,101.85]
[1644694019777,43.02237162,98.019,97.938,101.85]
[1644694019976,5.13087282,98.018,97.938,101.85]
[1644694020177,5.103,98.018,97.938,101.85]
[1644694020379,5.13087282,98.018,97.938,101.85]
[1644694020575,5.13087282,98.018,97.94,15.3141]
[1644694020776,43.02237162,98.019,97.94,15.3141]
[1644694020978,42.9944988,98.019,97.941,104.22390296]
[1644694021377,42.9944988,98.019,97.942,2.62390296]
[1644694021576,42.9944988,98.019,97.943,5.103]
[1644694021775,42.9944988,98.019,97.942,2.62390296]
[1644694021776,5.103,98.018,97.942,2.62390296]
[1644694021980,5.103,98.018,97.943,2.62390296]
[1644694022179,5.103,98.018,97.941,101.6]
[1644694022383,5.103,98.018,97.95,15.3124]
[1644694022580,0.02787282,98.035,97.951,101.6]
[1644694022883,0.02787282,98.028,97.953,101.6]
[1644694023079,0.02787282,98.034,97.954,28.707]
[1644694023280,0.02787282,98.071,97.954,28.707]
[1644694023479,0.02787282,98.034,97.955,41.6376366]
[1644694023679,0.02787282,98.068,97.971,37.47322977]
[1644694023881,0.02787282,98.068,97.972,23.8353]
[1644694024281,0.02787282,98.068,97.972,26.45920296]
[1644694024581,0.02787282,98.068,97.973,104.22390296]
[1644694024781,0.02787282,98.068,98.0,15.3015]
[1644694024982,45.01779679,98.069,98.003,36.52427458]
[1644694025180,45.01779679,98.069,98.004,5.099]
[1644694025382,0.02787282,98.087,98.004,5.099]
[1644694025581,5.099,98.086,98.004,11.5]
[1644694025781,4.62687282,98.086,98.005,41.0]
[1644694025981,0.02816722,98.085,98.006,101.6]
[1644694026181,5.099,98.085,98.008,101.6]
[1644694026482,44.88217664,98.084,98.008,101.6]
[1644694026682,49.95300942,98.084,98.008,101.6]
[1644694026886,49.95300942,98.084,98.022,101.6]
[1644694027087,49.98117664,98.084,98.022,101.6]
[1644694027285,49.95300942,98.084,98.022,101.6]
[1644694029805,49.95300942,98.084,98.02,15.301]
[1644694030006,2.62390296,98.083,98.0,15.3034]
[1644694030206,5.099,98.082,98.0,15.3034]
[1644694030408,5.12716722,98.082,98.001,101.6]
[1644694030605,2.62390296,98.081,98.001,101.6]
[1644694030905,5.099,98.08,98.001,101.6]
[1644694031306,2.62390296,98.079,97.998,37.71352458]
[1644694031506,2.65207018,98.079,97.999,101.6]
[1644694031705,5.099,98.078,97.998,37.71352458]
[1644694031907,5.099,98.078,97.98,15.3068]
[1644694032106,0.02816722,98.077,97.98,15.3068]
[1644694032306,5.099,98.076,97.98,15.3068]
[1644694032705,0.00816722,98.075,97.98,15.3068]
[1644694032905,4.28503823,98.075,97.981,37.36202209]
[1644694033109,5.099,98.074,97.982,101.6]
[1644694033506,15.3076,98.07,97.99,15.3063]
[1644694033706,34.52611541,98.069,97.991,101.6]
[1644694034306,5.099,98.068,97.991,101.6]
[1644694035007,5.099,98.068,98.003,101.6]
[1644694035207,34.52611541,98.069,98.003,101.6]
[1644694036011,34.52611541,98.069,98.011,101.6]
[1644694037109,48.0,98.068,97.992,2.62390296]
[1644694037309,12.26,98.06,97.957,5.099]
[1644694037509,7.0,98.05,97.942,22.6321]
[1644694037709,12.26,98.04,97.942,22.6321]
[1644694037911,24.0283,98.039,97.943,5.102]
[1644694038209,40.6570407,98.038,97.945,101.6]
[1644694038411,5.102,98.037,97.945,101.6]
[1644694038810,15.3133,98.03,97.945,101.6]
[1644694039012,5.102,98.029,97.95,15.3122]
[1644694039211,12.26,98.03,97.95,15.3122]
[1644694039410,12.26,98.03,97.951,101.6]
[1644694039610,12.26,98.03,97.953,101.6]
[1644694040013,12.26,98.03,97.955,101.6]
[1644694040410,12.26,98.03,97.956,5.102]
[1644694040612,12.26,98.03,97.957,101.6]
[1644694040811,12.26,98.03,97.961,101.6]
[1644694041015,12.26,98.03,97.962,43.27141172]
[1644694041314,12.26,98.03,97.963,5.102]
[1644694041513,40.6570407,98.038,97.963,5.102]
[1644694041912,40.6570407,98.038,97.964,101.6]
[1644694042114,40.6570407,98.038,97.965,5.101]
[1644694042813,40.6570407,98.038,97.97,15.3092]
[1644694043021,40.6570407,98.038,97.971,101.6]
[1644694046629,40.6570407,98.038,97.972,5.101]
[1644694047128,40.6570407,98.038,97.973,101.6]
[1644694047931,40.6570407,98.038,97.97,15.3092]
[1644694048141,5.101,98.037,97.961,101.6]
[1644694048331,5.101,98.037,97.946,0.25]
[1644694049731,15.3128,98.03,97.946,0.25]
[1644694051034,5.102,98.029,97.946,0.25]
[1644694053335,15.3128,98.03,97.947,5.102]
[1644694053738,15.3128,98.03,97.95,15.3121]
[1644694053936,5.102,98.029,97.95,15.3121]
[1644694054136,9.76812282,98.029,97.95,15.3121]
[1644694054437,4.66612282,98.028,97.95,15.3121]
[1644694054636,7.29002578,98.028,97.951,5.102]
[1644694054836,12.39202578,98.027,97.951,5.102]
[1644694055037,4.66612282,98.026,97.952,101.6]
[1644694055237,9.76812282,98.026,97.952,101.6]
[1644694055637,4.66612282,98.025,97.952,101.6]
[1644694056141,45.95336661,98.023,97.952,101.6]
[1644694056537,4.66612282,98.022,97.952,101.6]
[1644694056739,9.76812282,98.022,97.952,101.6]
[1644694056937,4.66612282,98.021,97.952,101.6]
[1644694057138,5.102,98.02,97.952,106.6]
[1644694057337,4.66612282,98.019,97.952,106.6]
[1644694057538,5.102,98.02,97.952,106.6]
[1644694057741,4.66612282,98.019,97.952,106.6]
[1644694057938,4.66612282,98.021,97.952,106.6]
[1644694058138,5.102,98.02,97.954,101.6]
[1644694058340,4.66612282,98.028,97.954,101.6]
[1644694058540,4.66612282,98.019,97.954,101.6]
[1644694058740,5.102,98.027,97.962,43.94251492]
[1644694058942,4.66612282,98.026,97.963,101.6]
[1644694059141,5.102,98.026,97.963,101.6]
[1644694059340,4.66612282,98.025,97.963,101.6]
[1644694059741,9.76812282,98.033,97.963,101.6]
[1644694060043,4.66612282,98.032,97.963,101.6]
[1644694060241,5.102,98.031,97.963,101.6]
[1644694060442,4.66612282,98.03,97.963,101.6]
[1644694060642,5.102,98.029,97.963,101.6]
[1644694060843,4.66612282,98.028,97.963,101.6]
[1644694061043,5.102,98.029,97.963,101.6]
[1644694061243,4.66612282,98.028,97.963,101.6]
[1644694061545,4.66612282,98.037,97.963,101.6]
[1644694061763,5.102,98.036,97.963,101.6]
[1644694062046,4.66612282,98.035,97.963,101.6]
[1644694062248,5.102,98.034,97.963,101.6]
[1644694062545,4.66612282,98.033,97.963,101.6]
[1644694062746,5.102,98.032,97.963,101.6]
[1644694062947,4.66612282,98.031,97.963,101.6]
[1644694063148,4.66612282,98.036,97.963,101.6]
[1644694066756,5.102,98.035,97.963,101.6]
[1644694066958,18.29590296,98.035,97.941,5.102]
[1644694067156,18.29590296,98.035,97.922,23.8401]
[1644694067157,14.71,98.02,97.922,23.8401]
[1644694067357,14.71,98.02,97.92,5.102]
[1644694067358,5.102,98.019,97.92,5.102]
[1644694067556,9.76812282,98.019,97.92,5.102]
[1644694067757,4.28503823,98.012,97.92,5.102]
[1644694067957,30.0276,98.0,97.898,5.102]
[1644694068157,4.66612282,97.999,97.899,24.6026]
[1644694068358,9.76912282,97.999,97.9,101.6]
[1644694068560,4.66612282,97.998,97.91,15.3186]
[1644694068761,5.103,97.997,97.91,15.3186]
[1644694068960,40.45786602,97.996,97.925,48.16836096]
[1644694069162,4.66612282,97.995,97.925,48.16836096]
[1644694069381,9.76912282,97.995,97.91,15.3186]
[1644694069583,15.319,97.99,97.9,101.6]
[1644694069777,14.71,97.98,97.911,101.6]
[1644694069978,5.103,97.979,97.911,101.6]
[1644694070177,9.76912282,97.979,97.911,101.6]
[1644694070378,37.77226827,97.978,97.899,24.6026]
[1644694070579,5.103,97.977,97.9,101.6]
[1644694071281,5.103,97.977,97.918,47.89210618]
[1644694071882,5.103,97.977,97.934,42.4950758]
[1644694072281,5.103,97.977,97.919,101.6]
[1644694072481,37.77226827,97.978,97.919,101.6]
[1644694073282,37.77226827,97.978,97.928,46.73481526]
[1644694073483,5.103,97.977,97.928,46.73481526]
[1644694075985,37.77226827,97.978,97.943,42.13311298]
[1644694076385,37.77226827,97.978,97.913,23.9984]
[1644694076587,5.103,97.977,97.913,23.9984]
[1644694077590,5.103,97.977,97.918,44.72659]
[1644694077789,5.103,97.977,97.9,15.3197]
[1644694077991,15.3221,97.97,97.865,5.104]
[1644694078190,14.71,97.96,97.861,5.105]
[1644694078390,5.106,97.959,97.853,24.792]
[1644694078589,23.5817,97.958,97.853,24.792]
[1644694078788,9.88838712,97.957,97.853,24.792]
[1644694078996,41.37267696,97.956,97.854,62.00694277]
[1644694079191,5.106,97.955,97.854,62.00694277]
[1644694079397,14.71,97.94,97.855,101.6]
[1644694079592,71.93474524,97.939,97.855,101.6]
[1644694079791,15.3282,97.93,97.856,0.25]
[1644694079991,5.107,97.929,97.856,0.25]
[1644694080593,14.71,97.93,97.857,5.107]
[1644694080791,14.71,97.93,97.857,32.10413753]
[1644694081194,14.71,97.93,97.858,26.99713753]
[1644694081398,14.71,97.93,97.86,15.3259]
[1644694081597,14.71,97.93,97.862,101.6]
[1644694081899,22.8735,97.939,97.864,101.6]
[1644694082195,43.10599637,97.938,97.864,101.6]
[1644694082496,43.10599637,97.938,97.865,26.99713753]
[1644694082895,43.10599637,97.938,97.871,36.36643466]
[1644694084500,5.107,97.937,97.872,101.6]
[1644694084699,43.10599637,97.938,97.872,101.6]
[1644694084900,5.106,97.937,97.872,101.6]
[1644694086003,5.106,97.937,97.866,23.1051]
[1644694086901,5.106,97.937,97.867,0.25]
[1644694087103,5.106,97.937,97.867,47.43857664]
[1644694087704,5.106,97.937,97.868,101.6]
[1644694087903,43.10599637,97.938,97.868,101.6]
[1644694088804,43.10599637,97.938,97.867,47.43857664]
[1644694089005,5.107,97.937,97.867,47.43857664]
[1644694089409,5.107,97.937,97.868,101.6]
[1644694091514,5.107,97.937,97.867,0.25]
[1644694091714,15.3283,97.93,97.866,23.1051]
[1644694091919,5.107,97.929,97.866,23.1051]
[1644694092318,14.71,97.92,97.866,23.1051]
[1644694092717,39.54349878,97.919,97.867,43.16477978]
[1644694092916,44.65049878,97.919,97.868,101.6]
[1644694093215,44.65049878,97.919,97.869,0.25]
[1644694094316,5.107,97.919,97.869,0.25]
[1644694094516,23.6479,97.937,97.869,0.25]
[1644694094719,23.6479,97.937,97.87,5.107]
[1644694094920,23.6479,97.937,97.869,0.25]
[1644694095118,5.107,97.949,97.869,0.25]
[1644694095318,45.1500635,97.948,97.869,0.25]
[1644694095532,5.106,97.947,97.87,0.024]
[1644694095733,5.106,97.947,97.87,15.3246]
[1644694095934,5.106,97.947,97.871,101.6]
[1644694096833,45.1500635,97.948,97.872,5.106]
[1644694097236,45.1500635,97.948,97.872,4.806]
[1644694097835,24.632,97.969,97.881,101.6]
[1644694098039,5.106,97.968,97.882,24.3825]
[1644694098236,5.106,97.968,97.883,101.6]
[1644694098534,5.105,97.979,97.885,101.6]
[1644694098735,43.39931618,97.978,97.89,15.3206]
[1644694098936,5.105,97.977,97.89,15.3206]
[1644694099134,43.39931618,97.978,97.891,106.705]
[1644694099939,43.39931618,97.978,97.9,15.3188]
[1644694100137,43.39931618,97.978,97.901,153.8640209]
[1644694100337,43.39931618,97.978,97.903,101.6]
[1644694100538,5.105,97.987,97.903,101.6]
[1644694100738,2.86510172,97.998,97.903,110.33]
[1644694100939,4.78686731,98.0,97.91,15.3174]
[1644694101139,2.86510172,98.019,97.91,15.3174]
[1644694101338,2.86510172,98.021,97.911,7.72790296]
[1644694101537,36.46642762,98.02,97.911,34.64397131]
[1644694101739,4.78798401,98.019,97.912,29.53997131]
[1644694101938,4.78798401,98.019,97.913,5.103]
[1644694102139,4.78798401,98.019,97.913,7.72690296]
[1644694102348,4.78798401,98.019,97.914,26.91606835]
[1644694102541,4.78798401,98.019,97.915,28.1264]
[1644694102739,4.78798401,98.019,97.94,15.3122]
[1644694102940,36.46642762,98.02,97.942,101.6]
[1644694103146,36.46642762,98.02,97.944,101.6]
[1644694103546,36.46642762,98.02,97.946,101.6]
[1644694103951,36.46642762,98.02,97.947,5.102]
[1644694104151,5.102,98.019,97.96,15.3098]
[1644694104351,5.102,98.019,97.961,101.6]
[1644694104546,5.102,98.019,97.962,47.93141865]
[1644694104748,5.102,98.019,97.963,101.6]
[1644694106549,4.102,98.019,97.963,101.6]
[1644694106950,36.46642762,98.02,97.963,101.6]
[1644694107255,15.3127,98.03,97.963,101.6]
[1644694107450,5.102,98.029,97.963,112.22]
[1644694107651,23.544,98.037,97.963,112.22]
[1644694107848,5.13018002,98.036,97.964,0.25]
[1644694108050,5.102,98.036,97.964,0.25]
[1644694108851,5.102,98.037,97.97,15.309]
[1644694109052,5.102,98.037,97.971,101.6]
[1644694110355,5.102,98.037,97.98,15.3074]
[1644694110652,5.102,98.037,97.981,43.733099]
[1644694110956,5.102,98.037,97.982,101.6]
[1644694113855,5.102,98.037,97.983,0.25]
[1644694114055,38.74027031,98.038,97.983,0.25]
[1644694115255,5.101,98.037,97.983,0.25]
[1644694116457,38.74027031,98.038,97.983,0.25]
[1644694116657,0.02818002,98.058,97.983,0.25]
[1644694116863,5.099,98.057,97.983,0.25]
[1644694117058,5.099,98.058,97.983,0.25]
[1644694117257,5.099,98.059,97.983,0.25]
[1644694117657,36.85608234,98.058,97.983,0.25]
[1644694117860,5.099,98.057,97.983,0.25]
[1644694118057,36.85608234,98.058,97.983,0.25]
[1644694119660,36.85608234,98.058,97.985,101.6]
[1644694119862,36.85608234,98.058,97.986,5.099]
[1644694120062,36.85608234,98.058,97.987,101.6]
[1644694120459,36.85608234,98.058,97.988,5.099]
[1644694120864,15.3097,98.05,97.988,5.099]
[1644694121262,5.101,98.049,97.988,5.099]
[1644694123071,4.77049973,98.048,97.988,5.099]
[1644694123264,5.101,98.047,97.988,5.099]
[1644694123666,5.101,98.049,97.981,145.333099]
[1644694123964,5.101,98.046,97.981,145.333099]
[1644694124165,4.77048866,98.048,97.981,145.333099]
[1644694124370,30.0197,98.05,97.981,145.333099]
[1644694124566,5.101,98.049,97.982,0.25]
[1644694125065,4.77664325,98.048,97.982,0.25]
[1644694125264,5.101,98.047,97.982,0.25]
[1644694125666,4.77664325,98.046,97.982,0.25]
[1644694126068,5.101,98.045,97.982,0.25]
[1644694126266,5.101,98.049,97.982,0.25]
[1644694126465,5.101,98.047,97.982,0.25]
[1644694126669,4.77662067,98.046,97.981,43.733099]
[1644694126967,41.20851602,98.039,97.981,43.733099]
[1644694127166,5.101,98.038,97.981,43.733099]
[1644694127368,9.87762067,98.038,97.981,43.733099]
[1644694127568,4.77662067,98.037,97.981,43.733099]
[1644694127768,5.101,98.036,97.981,43.733099]
[1644694128168,5.101,98.038,97.981,43.733099]
[1644694128369,4.77978302,98.037,97.981,43.733099]
[1644694128574,5.101,98.036,97.981,43.733099]
[1644694128771,4.77978302,98.035,97.981,43.733099]
[1644694129170,15.3127,98.03,97.949,5.101]
[1644694129417,2.86510172,98.02,97.928,5.101]
[1644694129616,2.86510172,98.02,97.922,0.024]
[1644694129617,14.71,98.01,97.922,0.024]
[1644694129814,14.71,98.01,97.923,0.024]
[1644694129815,2.86510172,98.006,97.923,0.024]
[1644694130015,9.88278302,98.009,97.915,0.024]
[1644694130016,2.86510172,97.995,97.915,0.024]
[1644694130216,14.71,97.99,97.884,48.06285973]
[1644694130414,5.105,97.989,97.886,101.6]
[1644694130615,4.77978302,97.989,97.89,15.3208]
[1644694130817,2.86510172,97.988,97.891,0.024]
[1644694131020,10.62,97.988,97.888,0.024]
[1644694131222,4.77978302,97.987,97.888,0.274]
[1644694131420,9.88478302,97.987,97.888,0.274]
[1644694131618,5.105,97.987,97.889,26.89538453]
[1644694131817,30.0293,97.99,97.9,15.3193]
[1644694132020,5.00543474,97.989,97.902,40.41361739]
[1644694132227,5.00543474,97.989,97.903,106.728]
[1644694132619,30.0293,97.99,97.903,106.728]
[1644694132820,5.104,97.989,97.903,106.728]
[1644694133249,5.104,97.989,97.904,0.25]
[1644694133457,5.104,97.989,97.905,0.024]
[1644694134059,45.93844276,97.969,97.905,0.024]
[1644694134253,45.93844276,97.969,97.904,0.25]
[1644694134254,47.37329947,97.969,97.904,0.25]
[1644694135054,45.93844276,97.969,97.904,0.25]
[1644694135254,45.93844276,97.969,97.906,101.6]
[1644694135455,45.93844276,97.969,97.908,101.6]
[1644694140462,45.93844276,97.969,97.904,0.25]
[1644694142363,5.105,97.968,97.904,0.25]
[1644694142563,45.93844276,97.969,97.904,0.25]
[1644694143870,45.93844276,97.969,97.905,5.105]
[1644694144066,45.93844276,97.969,97.906,101.6]
[1644694144285,45.93844276,97.969,97.908,101.6]
[1644694145268,5.105,97.968,97.908,101.6]
[1644694148279,1.43485671,97.976,97.91,15.3188]
[1644694148478,1.43485671,97.975,97.911,106.705]
[1644694148675,1.43485671,97.985,97.911,104.22390296]
[1644694148877,1.43485671,97.992,97.913,101.6]
[1644694149078,1.43485671,97.995,97.914,5.104]
[1644694149279,38.54082051,97.994,97.914,34.66887586]
[1644694149475,38.54082051,97.994,97.915,25.90430296]
[1644694149677,1.43485671,97.998,97.916,5.104]
[1644694149879,1.43485671,98.002,97.93,15.3136]
[1644694150075,1.43485671,98.003,97.931,28.3834]
[1644694150277,1.43485671,98.003,97.931,28.3594]
[1644694150478,1.43485671,98.005,97.931,30.98330296]
[1644694150679,45.02197131,98.004,97.932,142.8948383]
[1644694151076,45.02197131,98.004,97.933,2.62390296]
[1644694151479,45.02197131,98.004,97.934,26.93146576]
[1644694151896,45.02197131,98.004,97.952,42.57228395]
[1644694152697,1.43485671,98.008,97.953,101.6]
[1644694152996,1.43485671,98.012,97.953,101.6]
[1644694153396,1.43485671,98.013,97.953,101.6]
[1644694153597,34.21466161,98.012,97.954,24.6165]
[1644694153897,34.21466161,98.012,97.96,15.3107]
[1644694154098,35.64951832,98.012,97.96,15.3107]
[1644694154798,35.64951832,98.012,97.961,101.6]
[1644694155402,1.43485671,98.01,97.961,101.6]
[1644694155600,1.43485671,98.011,97.961,101.6]
[1644694156000,35.64951832,98.012,97.961,101.6]
[1644694156603,1.43485671,98.01,97.961,101.6]
[1644694157006,1.43485671,98.011,97.961,101.6]
[1644694157406,35.64951832,98.012,97.961,101.6]
[1644694158007,34.21466161,98.012,97.961,101.6]
[1644694158207,39.31666161,98.012,97.961,101.6]
[1644694158808,34.21466161,98.012,97.961,101.6]
[1644694159007,39.31666161,98.012,97.961,101.6]
[1644694159610,34.21466161,98.012,97.961,101.6]
[1644694159809,39.31666161,98.012,97.961,101.6]
[1644694160007,5.102,98.012,97.961,101.6]
[1644694160210,1.43485671,98.015,97.961,101.6]
[1644694160510,5.102,98.014,97.961,101.6]
[1644694160711,1.43485671,98.016,97.961,101.6]